fUST/lending_fUST_20250524
["ID","MTS","AMOUNT","RATE_DAILY","PERIOD"]
[362145762,1748037033609,-430.0,0.00016438,2]
[362145763,1748037033619,-430.0,0.00016438,2]
[362145764,1748037033628,-430.0,0.00016438,2]
[362145765,1748037033638,-430.0,0.00016438,2]
[362145766,1748037033648,-430.0,0.00016438,2]
[362145767,1748037033658,-430.0,0.00016438,2]
[362145768,1748037033668,-430.0,0.00016438,2]
[362145769,1748037033677,-452.25,0.00016438,2]
[362145770,1748037033687,-430.0,0.00016438,2]
[362145771,1748037033697,-250.0,0.00016438,2]
[362145772,1748037033707,-460.47,0.00016438,2]
[362145773,1748037033717,-430.0,0.00016438,2]
[362145774,1748037033727,-430.0,0.00016438,2]
[362145775,1748037033737,-430.0,0.00016438,2]
[362145776,1748037033747,-430.0,0.00016438,2]
[362145777,1748037033756,-430.0,0.00016438,2]
[362145778,1748037033766,-430.0,0.00016438,2]
[362145779,1748037033776,-430.0,0.00016438,2]
[362145780,1748037033786,-430.0,0.00016438,2]
[362145781,1748037033796,-430.0,0.00016438,2]
[362145782,1748037033807,-430.0,0.00016438,2]
[362145783,1748037033817,-430.0,0.00016438,2]
[362145784,1748037033827,-430.0,0.00016438,2]
[362145785,1748037033837,-430.0,0.00016438,2]
[362145786,1748037033847,-430.0,0.00016438,2]
[362145787,1748037033857,-430.0,0.00016438,2]
[362145788,1748037033867,-430.0,0.00016438,2]
[362145789,1748037033883,-430.0,0.00016438,2]
[362145790,1748037033898,-430.0,0.00016438,2]
[362145791,1748037033913,-430.0,0.00016438,2]
[362145792,1748037033928,-430.0,0.00016438,2]
[362145793,1748037033944,-430.0,0.00016438,2]
[362145794,1748037033959,-430.0,0.00016438,2]
[362145795,1748037033972,-430.0,0.00016438,2]
[362145796,1748037033984,-430.0,0.00016438,2]
[362145797,1748037033996,-430.0,0.00016438,2]
[362145798,1748037034010,-430.0,0.00016438,2]
[362145799,1748037034024,-430.0,0.00016438,2]
[362145800,1748037034036,-430.0,0.00016438,2]
[362145801,1748037034049,-430.0,0.00016438,2]
[362145802,1748037034062,-430.0,0.00016438,2]
[362145803,1748037034075,-430.0,0.00016438,2]
[362145804,1748037034088,-430.0,0.00016438,2]
[362145805,1748037034100,-430.0,0.00016438,2]
[362145806,1748037034113,-430.0,0.00016438,2]
[362145807,1748037034125,-430.0,0.00016438,2]
[362145808,1748037034138,-430.0,0.00016438,2]
[362145809,1748037034151,-430.0,0.00016438,2]
[362145810,1748037034164,-430.0,0.00016438,2]
[362145811,1748037034176,-430.0,0.00016438,2]
[362145812,1748037034189,-370.0,0.00016438,2]
[362145813,1748037034201,-430.0,0.00016438,2]
[362145814,1748037034214,-430.0,0.00016438,2]
[362145815,1748037034228,-430.0,0.00016438,2]
[362145816,1748037034243,-370.0,0.00016438,2]
[362145817,1748037034256,-430.0,0.00016438,2]
[362145818,1748037034269,-430.0,0.00016438,2]
[362145819,1748037034283,-430.0,0.00016438,2]
[362145820,1748037034297,-430.0,0.00016438,2]
[362145821,1748037034311,-430.0,0.00016438,2]
[362145822,1748037034323,-430.0,0.00016438,2]
[362145823,1748037034335,-430.0,0.00016438,2]
[362145824,1748037034347,-430.0,0.00016438,2]
[362145825,1748037034358,-444.80884484,0.00016438,2]
[362145826,1748037034370,-430.0,0.00016438,2]
[362145827,1748037034381,-430.0,0.00016438,2]
[362145828,1748037034394,-430.0,0.00016438,2]
[362145829,1748037034405,-517.18,0.00016712,2]
[362145830,1748037034415,-430.0,0.00016712,2]
[362145831,1748037034428,-426.89,0.00016712,2]
[362145832,1748037034440,-202.30790771,0.00016712,2]
[362145833,1748037034453,-380.0,0.00016712,2]
[362145834,1748037034465,-411.2,0.00016712,2]
[362145835,1748037034478,-230.0,0.00016712,2]
[362145836,1748037034490,-430.0,0.00016712,2]
[362145837,1748037034503,-430.0,0.00016712,2]
[362145838,1748037034517,-430.0,0.00016712,2]
[362145839,1748037034529,-230.0,0.00016712,2]
[362145840,1748037034541,-430.0,0.00016712,2]
[362145841,1748037034556,-430.0,0.00016712,2]
[362145842,1748037034569,-430.0,0.00016712,2]
[362145843,1748037034580,-230.0,0.00016712,2]
[362145844,1748037034591,-430.0,0.00016712,2]
[362145845,1748037034602,-430.0,0.00016712,2]
[362145846,1748037034613,-430.0,0.00016712,2]
[362145847,1748037034624,-430.0,0.00016712,2]
[362145848,1748037034636,-430.0,0.00016712,2]
[362145849,1748037034650,-430.0,0.00016712,2]
[362145850,1748037034664,-430.0,0.00016712,2]
[362145851,1748037034678,-176.66,0.00016712,2]
[362145852,1748037034691,-430.0,0.00016712,2]
[362145853,1748037034705,-430.0,0.00016712,2]
[362145854,1748037034718,-430.0,0.00016712,2]
[362145855,1748037034729,-370.0,0.00016712,2]
[362145856,1748037034739,-430.0,0.00016712,2]
[362145857,1748037034751,-430.0,0.00016712,2]
[362145858,1748037034763,-535.52,0.00016712,2]
[362145859,1748037034775,-430.0,0.00016712,2]
[362145860,1748037034787,-430.0,0.00016712,2]
[362145861,1748037034801,-285.26,0.00016712,2]
[362145862,1748037034814,-430.0,0.00016712,2]
[362145863,1748037034826,-430.0,0.00016712,2]
[362145864,1748037034838,-430.0,0.00016712,2]
[362145865,1748037034849,-301.52619643,0.00016712,2]
[362145866,1748037034859,-430.0,0.00016712,2]
[362145867,1748037034871,-430.0,0.00016712,2]
[362145868,1748037034883,-430.0,0.00016712,2]
[362145869,1748037034894,-430.0,0.00016712,2]
[362145870,1748037034906,-430.0,0.00016712,2]
[362145871,1748037034917,-430.0,0.00016712,2]
[362145872,1748037034930,-430.0,0.00016712,2]
[362145873,1748037034945,-430.0,0.00016712,2]
[362145874,1748037034957,-430.0,0.00016712,2]
[362145875,1748037034968,-430.0,0.00016712,2]
[362145876,1748037034981,-430.0,0.00016712,2]
[362145877,1748037034992,-465.62,0.00016712,2]
[362145878,1748037035004,-441.46,0.00016712,2]
[362145879,1748037035018,-430.0,0.00016712,2]
[362145880,1748037035029,-430.0,0.00016712,2]
[362145881,1748037035041,-430.0,0.00016712,2]
[362145882,1748037035054,-430.0,0.00016712,2]
[362145883,1748037035066,-430.0,0.00016712,2]
[362145884,1748037035078,-270.0,0.00016712,2]
[362145885,1748037035089,-430.0,0.00016712,2]
[362145886,1748037035101,-430.0,0.00016712,2]
[362145887,1748037035112,-430.0,0.00016712,2]
[362145888,1748037035123,-430.0,0.00016712,2]
[362145889,1748037035135,-430.0,0.00016712,2]
[362145890,1748037035146,-430.0,0.00016712,2]
[362145891,1748037035158,-430.0,0.00016712,2]
[362145892,1748037035169,-430.0,0.00016712,2]
[362145893,1748037035179,-450.1,0.00016712,2]
[362145894,1748037035191,-430.0,0.00016712,2]
[362145895,1748037035202,-430.0,0.00016712,2]
[362145896,1748037035214,-430.0,0.00016712,2]
[362145897,1748037035225,-509.93,0.00016712,2]
[362145898,1748037035236,-430.0,0.00016712,2]
[362145899,1748037035247,-430.0,0.00016712,2]
[362145900,1748037035259,-430.0,0.00016712,2]
[362145901,1748037035271,-430.0,0.00016712,2]
[362145902,1748037035283,-430.0,0.00016712,2]
[362145903,1748037035295,-430.0,0.00016712,2]
[362145904,1748037035306,-430.0,0.00016712,2]
[362145905,1748037035318,-430.0,0.00016712,2]
[362145906,1748037035331,-430.0,0.00016712,2]
[362145907,1748037035342,-430.0,0.00016712,2]
[362145908,1748037035354,-430.0,0.00016712,2]
[362145909,1748037035366,-430.0,0.00016712,2]
[362145910,1748037035378,-430.0,0.00016712,2]
[362145911,1748037035390,-430.0,0.00016712,2]
[362145912,1748037035403,-430.0,0.00016712,2]
[362145913,1748037035414,-553.41,0.00016712,2]
[362145914,1748037035426,-170.0,0.00016712,2]
[362145915,1748037035579,-430.0,0.00016712,2]
[362145916,1748037035598,-430.0,0.00016712,2]
[362145917,1748037035608,-430.0,0.00016712,2]
[362145918,1748037035618,-428.77129648,0.00016712,2]
[362145919,1748037035628,-430.0,0.00016712,2]
[362145920,1748037035638,-430.0,0.00016712,2]
[362145921,1748037035647,-430.0,0.00016712,2]
[362145922,1748037035657,-430.0,0.00016712,2]
[362145923,1748037035667,-430.0,0.00016712,2]
[362145924,1748037035676,-430.0,0.00016712,2]
[362145925,1748037035686,-430.0,0.00016712,2]
[362145926,1748037035696,-430.0,0.00016712,2]
[362145927,1748037035706,-430.0,0.00016712,2]
[362145928,1748037035715,-430.0,0.00016712,2]
[362145929,1748037035726,-430.0,0.00016712,2]
[362145930,1748037035735,-430.0,0.00016712,2]
[362145931,1748037035744,-430.0,0.00016712,2]
[362145932,1748037035754,-430.0,0.00016712,2]
[362145933,1748037035764,-390.0,0.00016712,2]
[362145934,1748037035773,-430.0,0.00016712,2]
[362145935,1748037035783,-430.0,0.00016712,2]
[362145936,1748037035793,-390.0,0.00016712,2]
[362145937,1748037035804,-430.0,0.00016712,2]
[362145938,1748037035813,-430.0,0.00016712,2]
[362145939,1748037035823,-430.0,0.00016712,2]
[362145940,1748037035832,-430.0,0.00016712,2]
[362145941,1748037035842,-430.0,0.00016712,2]
[362145942,1748037035851,-430.0,0.00016712,2]
[362145943,1748037035861,-430.0,0.00016712,2]
[362145944,1748037035870,-430.0,0.00016712,2]
[362145945,1748037035880,-421.32,0.00016712,2]
[362145946,1748037035890,-430.0,0.00016712,2]
[362145947,1748037035899,-430.0,0.00016712,2]
[362145948,1748037035908,-430.0,0.00016712,2]
[362145949,1748037035917,-430.0,0.00016712,2]
[362145950,1748037035927,-430.0,0.00016712,2]
[362145951,1748037035939,-525.52622314,0.00016712,2]
[362145952,1748037035948,-430.0,0.00016712,2]
[362145953,1748037035958,-289.0,0.00016883,2]
[362145954,1748037035967,-161.35,0.00016986,2]
[362145955,1748037035978,-367.06,0.00016986,2]
[362145956,1748037035988,-378.49,0.00016986,2]
[362145957,1748037035998,-323.05,0.00016986,2]
[362145958,1748037036007,-430.0,0.00016986,2]
[362145959,1748037036018,-430.0,0.00016986,2]
[362145960,1748037036028,-382.75,0.00016986,2]
[362145961,1748037036037,-430.0,0.00016986,2]
[362145962,1748037036047,-430.0,0.00016986,2]
[362145963,1748037036057,-430.0,0.00016986,2]
[362145964,1748037036066,-430.0,0.00016986,2]
[362145965,1748037036075,-430.0,0.00016986,2]
[362145966,1748037036084,-430.0,0.00016986,2]
[362145967,1748037036093,-430.0,0.00016986,2]
[362145968,1748037036103,-430.0,0.00016986,2]
[362145969,1748037036112,-430.0,0.00016986,2]
[362145970,1748037036121,-216.82,0.00016986,2]
[362145971,1748037036131,-430.0,0.00016986,2]
[362145972,1748037036140,-524.26,0.00016986,2]
[362145973,1748037036149,-430.0,0.00016986,2]
[362145974,1748037036158,-430.0,0.00016986,2]
[362145975,1748037036168,-430.0,0.00016986,2]
[362145976,1748037036177,-430.0,0.00016986,2]
[362145977,1748037036187,-430.0,0.00016986,2]
[362145978,1748037036197,-493.99,0.00016986,2]
[362145979,1748037036208,-430.0,0.00016986,2]
[362145980,1748037036218,-430.0,0.00016986,2]
[362145981,1748037036228,-430.0,0.00016986,2]
[362145982,1748037036239,-397.02,0.00016986,2]
[362145983,1748037036248,-385.13,0.00016986,2]
[362145984,1748037036258,-430.0,0.00016986,2]
[362145985,1748037036267,-347.97,0.00016986,2]
[362145986,1748037036277,-430.0,0.00016986,2]
[362145987,1748037036287,-430.0,0.00016986,2]
[362145988,1748037036296,-430.0,0.00016986,2]
[362145989,1748037036307,-430.0,0.00016986,2]
[362145990,1748037036317,-430.0,0.00016986,2]
[362145991,1748037036327,-430.0,0.00016986,2]
[362145992,1748037036336,-430.0,0.00016986,2]
[362145993,1748037036346,-430.0,0.00016986,2]
[362145994,1748037036356,-430.0,0.00016986,2]
[362145995,1748037036366,-340.59,0.00016986,2]
[362145996,1748037036376,-430.0,0.00016986,2]
[362145997,1748037036385,-189.18,0.00016986,2]
[362145998,1748037036394,-430.0,0.00016986,2]
[362145999,1748037036404,-430.0,0.00016986,2]
[362146000,1748037036413,-190.46,0.00016986,2]
[362146001,1748037036423,-430.0,0.00016986,2]
[362146002,1748037036432,-542.72,0.00016986,2]
[362146003,1748037036441,-335.55717788,0.000172,2]
[362146004,1748037036451,-335.55717764,0.000172,2]
[362146005,1748037036462,-603.70077833,0.0001724,2]
[362146006,1748037036472,-500.0,0.0001724,2]
[362146007,1748037036482,-500.0,0.0001724,2]
[362146008,1748037036492,-167.72462913,0.00017249,2]
[362146009,1748037036503,-501.24477038,0.00017257,2]
[362146010,1748037036514,-546.44597718,0.00017257,2]
[362146011,1748037036523,-500.0,0.00017257,2]
[362146012,1748037036534,-500.71175055,0.00017257,2]
[362146013,1748037036545,-246.50741763,0.0001726,2]
[362146014,1748037036557,-430.0,0.0001726,2]
[362146015,1748037036566,-430.0,0.0001726,2]
[362146016,1748037036577,-430.0,0.0001726,2]
[362146017,1748037036587,-430.0,0.0001726,2]
[362146018,1748037036596,-430.0,0.0001726,2]
[362146019,1748037036606,-430.0,0.0001726,2]
[362146020,1748037036615,-430.0,0.0001726,2]
[362146021,1748037036627,-430.0,0.0001726,2]
[362146022,1748037036637,-430.0,0.0001726,2]
[362146023,1748037036647,-430.0,0.0001726,2]
[362146024,1748037036657,-430.0,0.0001726,2]
[362146025,1748037036667,-430.0,0.0001726,2]
[362146026,1748037036677,-206.82,0.0001726,2]
[362146027,1748037036687,-430.0,0.0001726,2]
[362146028,1748037036699,-172.59,0.0001726,2]
[362146029,1748037036708,-430.0,0.0001726,2]
[362146030,1748037036719,-430.0,0.0001726,2]
[362146031,1748037036729,-430.0,0.0001726,2]
[362146032,1748037036740,-430.0,0.0001726,2]
[362146033,1748037036750,-430.0,0.0001726,2]
[362146034,1748037036759,-430.0,0.0001726,2]
[362146035,1748037036769,-430.0,0.0001726,2]
[362146036,1748037036778,-453.63,0.0001726,2]
[362146037,1748037036787,-293.39,0.0001726,2]
[362146038,1748037036796,-430.0,0.0001726,2]
[362146039,1748037036805,-430.0,0.0001726,2]
[362146040,1748037036815,-430.0,0.0001726,2]
[362146041,1748037036825,-430.0,0.0001726,2]
[362146042,1748037036834,-430.0,0.0001726,2]
[362146043,1748037036844,-430.0,0.0001726,2]
[362146044,1748037036853,-430.0,0.0001726,2]
[362146045,1748037036862,-430.0,0.0001726,2]
[362146046,1748037036871,-430.0,0.0001726,2]
[362146047,1748037036881,-500.0,0.00017263,2]
[362146048,1748037036891,-424.98840971,0.00017295,2]
[362146049,1748037036900,-335.55717764,0.00017452,2]
[362146050,1748037036910,-261.04,0.00017534,2]
[362146051,1748037036919,-525.86,0.00017534,2]
[362146052,1748037036930,-430.0,0.00017534,2]
[362146053,1748037036941,-421.91,0.00017534,2]
[362146054,1748037036951,-270.07,0.00017534,2]
[362146055,1748037036960,-499.97,0.00017534,2]
[362146056,1748037036971,-430.0,0.00017534,2]
[362146057,1748037036980,-531.89,0.00017534,2]
[362146058,1748037036990,-430.0,0.00017534,2]
[362146059,1748037037000,-430.0,0.00017534,2]
[362146060,1748037037011,-430.0,0.00017534,2]
[362146061,1748037037021,-430.0,0.00017534,2]
[362146062,1748037037030,-336.69,0.00017534,2]
[362146063,1748037037039,-430.0,0.00017534,2]
[362146064,1748037037048,-219.14,0.00017534,2]
[362146065,1748037037058,-430.0,0.00017534,2]
[362146066,1748037037067,-430.0,0.00017534,2]
[362146067,1748037037077,-430.0,0.00017534,2]
[362146068,1748037037087,-344.78,0.00017534,2]
[362146069,1748037037096,-430.0,0.00017534,2]
[362146070,1748037037106,-430.0,0.00017534,2]
[362146071,1748037037115,-430.0,0.00017534,2]
[362146072,1748037037124,-430.0,0.00017534,2]
[362146073,1748037037133,-430.0,0.00017534,2]
[362146074,1748037037143,-430.0,0.00017534,2]
[362146075,1748037037152,-430.0,0.00017534,2]
[362146076,1748037037161,-430.0,0.00017534,2]
[362146077,1748037037171,-538.37,0.00017534,2]
[362146078,1748037037181,-430.0,0.00017534,2]
[362146079,1748037037191,-335.55717764,0.00017728,2]
[362146080,1748037037200,-215.0738,0.00017797,2]
[362146081,1748037037210,-430.0,0.00017808,2]
[362146082,1748037037219,-430.0,0.00017808,2]
[362146083,1748037037229,-430.0,0.00017808,2]
[362146084,1748037037238,-430.0,0.00017808,2]
[362146085,1748037037248,-430.0,0.00017808,2]
[362146086,1748037037258,-373.1,0.00017808,2]
[362146087,1748037037267,-430.0,0.00017808,2]
[362146088,1748037037277,-430.0,0.00017808,2]
[362146090,1748037037286,-430.0,0.00017808,2]
[362146091,1748037037296,-430.0,0.00017808,2]
[362146092,1748037037305,-430.0,0.00017808,2]
[362146093,1748037037315,-430.0,0.00017808,2]
[362146094,1748037037324,-430.0,0.00017808,2]
[362146095,1748037037334,-430.0,0.00017808,2]
[362146096,1748037037343,-430.0,0.00017808,2]
[362146097,1748037037353,-430.0,0.00017808,2]
[362146098,1748037037362,-430.0,0.00017808,2]
[362146099,1748037037372,-430.0,0.00017808,2]
[362146100,1748037037381,-201.43,0.00017808,2]
[362146101,1748037037390,-335.55717764,0.00018003,2]
[362146102,1748037037401,-418.86,0.00018082,2]
[362146103,1748037037410,-568.98,0.00018082,2]
[362146104,1748037037419,-232.11,0.00018082,2]
[362146105,1748037037429,-430.0,0.00018082,2]
[362146106,1748037037438,-430.0,0.00018082,2]
[362146107,1748037037447,-430.0,0.00018082,2]
[362146109,1748037037456,-430.0,0.00018082,2]
[362146111,1748037037465,-430.0,0.00018082,2]
[362146113,1748037037475,-430.0,0.00018082,2]
[362146115,1748037037484,-220.08,0.00018082,2]
[362146117,1748037037493,-430.0,0.00018082,2]
[362146119,1748037037502,-430.0,0.00018082,2]
[362146120,1748037037512,-430.0,0.00018082,2]
[362146122,1748037037521,-430.0,0.00018082,2]
[362146124,1748037037531,-430.0,0.00018082,2]
[362146125,1748037037540,-508.77,0.00018082,2]
[362146126,1748037037550,-430.0,0.00018082,2]
[362146127,1748037037559,-335.55717764,0.00018279,2]
[362146128,1748037037568,-422.85710789,0.00018336,2]
[362146129,1748037037577,-894.64583333,0.00018336,2]
[362146130,1748037037586,-160.0,0.00018336,2]
[362146131,1748037037595,-12647.66147447,0.00018336,2]
[362146132,1748037037605,-212.48480548,0.00018336,2]
[362146133,1748037037614,-430.0,0.00018356,2]
[362146135,1748037037623,-430.0,0.00018356,2]
[362146136,1748037037632,-157.11,0.00018356,2]
[362146137,1748037037641,-430.0,0.00018356,2]
[362146138,1748037037650,-430.0,0.00018356,2]
[362146139,1748037037660,-430.0,0.00018356,2]
[362146140,1748037037670,-430.0,0.00018356,2]
[362146142,1748037037679,-430.0,0.00018356,2]
[362146143,1748037037689,-430.0,0.00018356,2]
[362146144,1748037037698,-430.0,0.00018356,2]
[362146145,1748037037708,-430.0,0.00018356,2]
[362146146,1748037037721,-430.0,0.00018356,2]
[362146147,1748037037731,-335.55717764,0.00018555,2]
[362146149,1748037037740,-430.0,0.0001863,2]
[362146150,1748037037749,-430.0,0.0001863,2]
[362146151,1748037037759,-430.0,0.0001863,2]
[362146152,1748037037768,-430.0,0.0001863,2]
[362146153,1748037037778,-430.0,0.0001863,2]
[362146154,1748037037787,-430.0,0.0001863,2]
[362146155,1748037037796,-430.0,0.0001863,2]
[362146157,1748037037806,-445.81,0.0001863,2]
[362146158,1748037037816,-430.0,0.0001863,2]
[362146159,1748037037825,-430.0,0.0001863,2]
[362146160,1748037037835,-430.0,0.0001863,2]
[362146161,1748037037844,-335.55717764,0.00018831,2]
[362146162,1748037037853,-430.0,0.00018904,2]
[362146163,1748037037863,-430.0,0.00018904,2]
[362146165,1748037037872,-430.0,0.00018904,2]
[362146166,1748037037882,-430.0,0.00018904,2]
[362146168,1748037037891,-430.0,0.00018904,2]
[362146169,1748037037902,-430.0,0.00018904,2]
[362146170,1748037037914,-430.0,0.00018904,2]
[362146171,1748037037924,-430.0,0.00018904,2]
[362146172,1748037037937,-361.1,0.00018904,2]
[362146173,1748037037949,-430.0,0.00018904,2]
[362146174,1748037037960,-335.55717764,0.00019107,2]
[362146175,1748037037970,-167.72462913,0.00019162,2]
[362146176,1748037037981,-223.0315306,0.00019166,2]
[362146177,1748037037991,-430.0,0.00019178,2]
[362146178,1748037038002,-430.0,0.00019178,2]
[362146179,1748037038012,-430.0,0.00019178,2]
[362146180,1748037038021,-430.0,0.00019178,2]
[362146181,1748037038031,-430.0,0.00019178,2]
[362146182,1748037038041,-430.0,0.00019178,2]
[362146183,1748037038050,-430.0,0.00019178,2]
[362146184,1748037038060,-430.0,0.00019178,2]
[362146185,1748037038070,-430.0,0.00019178,2]
[362146186,1748037038081,-335.55717764,0.00019383,2]
[362146187,1748037038090,-344.38,0.00019452,2]
[362146188,1748037038103,-430.0,0.00019452,2]
[362146189,1748037038113,-430.0,0.00019452,2]
[362146190,1748037038122,-262.8,0.00019452,2]
[362146191,1748037038131,-430.0,0.00019452,2]
[362146192,1748037038142,-547.87,0.00019452,2]
[362146193,1748037038152,-430.0,0.00019452,2]
[362146194,1748037038163,-430.0,0.00019452,2]
[362146195,1748037038173,-181.44,0.00019452,2]
[362146196,1748037038182,-335.55717764,0.00019659,2]
[362146197,1748037038192,-430.0,0.00019726,2]
[362146198,1748037038203,-430.0,0.00019726,2]
[362146199,1748037038214,-430.0,0.00019726,2]
[362146200,1748037038224,-404.0,0.00019833,2]
[362146201,1748037038234,-335.55717764,0.00019934,2]
[362146202,1748037038244,-430.0,0.0002,2]
[362146203,1748037038254,-430.0,0.0002,2]
[362146204,1748037038264,-430.0,0.0002,2]
[362146205,1748037038273,-335.55717764,0.0002021,2]
[362146206,1748037038282,-430.0,0.00020273,2]
[362146207,1748037038293,-430.0,0.00020273,2]
[362146208,1748037038303,-271.6,0.00020273,2]
[362146209,1748037038312,-335.55717764,0.00020486,3]
[362146210,1748037038322,-231.28369723,0.00020535,2]
[362146211,1748037038331,-430.0,0.00020547,2]
[362146212,1748037038341,-430.0,0.00020547,2]
[362146213,1748037038351,-500.0,0.00020548,2]
[362146214,1748037038360,-500.0,0.00020548,2]
[362146215,1748037038369,-500.0,0.00020548,2]
[362146216,1748037038379,-500.0,0.00020548,2]
[362146217,1748037038389,-500.0,0.00020548,2]
[362146218,1748037038401,-500.0,0.00020548,2]
[362146219,1748037038414,-500.0,0.00020548,2]
[362146220,1748037038424,-500.0,0.00020548,2]
[362146221,1748037038434,-500.0,0.00020548,2]
[362146222,1748037038443,-500.0,0.00020548,2]
[362146223,1748037038452,-500.0,0.00020548,2]
[362146224,1748037038463,-431.05653733,0.00020548,2]
[362146225,1748037038474,-500.0,0.00020548,2]
[362146226,1748037038484,-500.0,0.00020548,2]
[362146227,1748037038495,-500.0,0.00020548,2]
[362146228,1748037038504,-500.0,0.00020548,2]
[362146229,1748037038514,-500.0,0.00020548,2]
[362146230,1748037038523,-500.0,0.00020548,2]
[362146231,1748037038532,-500.0,0.00020548,2]
[362146232,1748037038541,-500.0,0.00020548,2]
[362146233,1748037038551,-500.0,0.00020548,2]
[362146234,1748037038666,-551.73957613,0.00020548,2]
[362146235,1748037038675,-500.0,0.00020548,2]
[362146236,1748037038684,-236.21770329,0.00020548,2]
[362146237,1748037038694,-500.0,0.00020548,2]
[362146238,1748037038703,-335.55717764,0.00020762,3]
[362146239,1748037038712,-430.0,0.00020821,2]
[362146240,1748037038721,-430.0,0.00020821,2]
[362146241,1748037038731,-335.55717764,0.00021038,4]
[362146242,1748037038741,-167.72462913,0.00021074,2]
[362146243,1748037038750,-430.0,0.00021095,2]
[362146244,1748037038760,-430.0,0.00021095,2]
[362146245,1748037038769,-205.52,0.00021184,2]
[362146246,1748037038779,-4791.42,0.00021189,2]
[362146247,1748037038789,-335.55717764,0.00021314,5]
[362146248,1748037038798,-430.0,0.00021369,2]
[362146249,1748037038808,-430.0,0.00021369,2]
[362146250,1748037038817,-335.55717764,0.0002159,5]
[362146251,1748037038826,-430.0,0.00021643,2]
[362146252,1748037038836,-246.2,0.00021643,2]
[362146253,1748037038846,-335.55717764,0.00021866,6]
[362146254,1748037038855,-239.84119403,0.00021904,2]
[362146255,1748037038865,-430.0,0.00021917,2]
[362146256,1748037038875,-335.55717764,0.00022141,6]
[362146257,1748037038884,-161.39,0.00022191,2]
[362146258,1748037038894,-335.55717764,0.00022417,7]
[362146259,1748037038903,-500.0,0.00022683,2]
[362146260,1748037038913,-335.55717764,0.00022693,7]
[362146261,1748037038922,-404.0,0.00022833,2]
[362146262,1748037038935,-335.55717764,0.00022969,8]
[362146263,1748037038944,-167.72462913,0.00022987,2]
[362146264,1748037038953,-9582.85,0.00023116,2]
[362146265,1748037038963,-335.55717764,0.00023245,8]
[362146266,1748037038975,-248.71531821,0.00023273,2]
[362146267,1748037038986,-5945.69,0.00023287,2]
[362146268,1748037038996,-158.2090311,0.00023397,2]
[362146269,1748037039006,-158.2090311,0.00023397,2]
[362146270,1748037039017,-158.2090311,0.00023397,2]
[362146271,1748037039026,-157.0640115,0.00023397,2]
[362146272,1748037039036,-335.55717764,0.00023521,9]
[362146273,1748037039046,-500.0,0.00023536,2]
[362146274,1748037039055,-500.0,0.00023779,2]
[362146275,1748037039064,-335.55717764,0.00023797,9]
[362146276,1748037039074,-550.63966727,0.00023841,2]